Cogmind - Beta 13 @@@ ROGUE MODE // 2024.04.20 @ 15:29:19 Player: weedlord420 Result: Destroyed by S-10 Pest with Light Assault Rifle Performance ------------- Evolutions (2) 1000 Regions Visited (3) 600 Robots Destroyed (39) 195 Value Destroyed (774) 774 Prototype IDs (3) 60 Alien Tech Used (0) 0 Bonus (0) 0 TOTAL SCORE: 2629 Bonus ------- None Cogmind --------- Core Integrity 0/550 Matter 173/300 Energy 100/100 System Corruption 0% Temperature Cool (0) Movement Core (200) Ox3 Location -8/Materials Parts ------- > --- POWER (1) -------- (None) > --- PROPULSION (4) --- (None) > --- UTILITY (4) ------ Medium Storage Unit > --- WEAPON (2) ------- (None) > --- INVENTORY (10) --- Gravmag System Gravmag System Gravmag System Gravmag System Improved Sensor Array Signal Interpreter ECM Suite Hacking Suite Datajack Multitool Peak State ------------ > --- POWER ------------ Light Deuterium Engine > --- PROPULSION ------- Medium Treads Medium Treads Medium Treads Medium Treads > --- UTILITY ---------- Improved Heat Sink Improved Heat Sink Medium Storage Unit Light Armor Plating > --- WEAPON ----------- Heavy Assault Rifle Enhanced Autogun > --- INVENTORY -------- Gravmag System Gravmag System Gravmag System Gravmag System Improved Sensor Array Signal Interpreter ECM Suite Hacking Suite Datajack Multitool [Rating: 35] Favorites ----------- Power Ion Engine Engine Ion Engine Power Core Light Nuclear Core Propulsion Light Treads Treads Light Treads Utility Medium Storage Unit Device Improved Heat Sink Storage Medium Storage Unit Processor Transport Network Coupler Protection Light Armor Plating Weapon Assault Rifle Energy Gun Small Laser Ballistic Gun Assault Rifle Launcher Grenade Launcher Build | -11 -10 -10 -8 ------- Run | Yrd Mat Sub Mat Slots Evolved 4 | . . . 4 Power . | . . . . Propulsion 2 | . . . 2 Utility 2 | . . . 2 Weapon . | . . . . Parts Attached 34 | 6 9 6 13 Power 5 | 1 1 . 3 Engine 4 | 1 . . 3 Core 1 | . 1 . . Reactor . | . . . . Propulsion 10 | 2 . 2 6 Treads 10 | 2 . 2 6 Leg . | . . . . Wheel . | . . . . Hover . | . . . . Flight . | . . . . Utility 6 | 1 2 1 2 Device 2 | . . . 2 Storage 2 | 1 1 . . Processor 1 | . 1 . . Hackware . | . . . . Protection 1 | . . 1 . Artifact . | . . . . Weapon 13 | 2 6 3 2 Energy Gun 1 | 1 . . . Energy Cannon . | . . . . Ballistic Gun 10 | 1 5 2 2 Ballistic Cannon . | . . . . Launcher 2 | . 1 1 . Special Weapon . | . . . . Impact Weapon . | . . . . Slashing Weapon . | . . . . Piercing Weapon . | . . . . Special Melee Weapon . | . . . . Unidentified Prototypes 1 | . . . 1 Parts Lost 11 | . . 1 10 Power 2 | . . 1 1 Propulsion 4 | . . . 4 Utility 3 | . . . 3 Weapon 2 | . . . 2 Highest Loss Streak 9 | . . 1 9 To Critical Strikes 1 | . . . 1 Average Slot Usage (%) 94 | . 98 92 80 Engine 7 | . 10 . 5 Core 3 | . 3 6 . Treads 27 | . 28 28 27 Device 2 | . . . 16 Storage 13 | . 14 14 9 Processor 8 | . 13 1 . Protection 3 | . . 12 6 Energy Gun 2 | . 3 . . Ballistic Gun 22 | . 23 25 15 Naked Turns . | . . . . Heaviest Build 28 | 13 20 23 28 Greatest Support 112 | 40 40 40 112 Greatest Overweight (x) 4 | . . . 4 Average Overweight (x) . | . . . . Largest Inventory Capacity 10 | 8 10 10 10 Average Capacity 9 | 7 9 10 10 Most Carried 10 | 5 10 10 10 Average Carried 8 | . 8 9 9 Final Capacity 10 | 8 10 10 10 Final Carried 10 | . 10 10 10 Class Distribution -------------------- 100% | Mutant Dominant Class ---------------- Mutant | -10/Materials Mutant | -10/Subcaves Mutant | -8/Materials Resources | -11 -10 -10 -8 ----------- Run | Yrd Mat Sub Mat Matter Collected 1091 | 186 271 153 481 Remotely . | . . . . Salvage Created 1303 | . 489 151 663 Parts 82 | . 35 6 41 Haulers Intercepted 3 | . 2 . 1 Recyclers Shooed . | . . . . Parts Field Recycled . | . . . . Retrieved Matter . | . . . . Parts Self-Destructed 11 | . . 11 . Prevented . | . . . . Kills | -11 -10 -10 -8 ------- Run | Yrd Mat Sub Mat Combat Hostiles Destroyed 25 | . 9 4 12 Guns 23 | . 9 2 12 AOE 2 | . . 2 . Classes Destroyed 11 | . 6 2 3 Worker 3 | . . . 3 Builder 2 | . . . 2 Hauler 3 | . 2 . 1 Recycler 2 | . 1 . 1 Operator 1 | . 1 . . Watcher 3 | . 2 . 1 Swarmer 12 | . 5 . 7 Grunt 7 | . 4 . 3 Sentry 2 | . . . 2 Artisan 1 | . . 1 . Subdweller 4 | . . 4 . Best Kill Streak 12 | . 5 2 12 Combat Bots Only 9 | . 3 2 9 Max Kills in Single Turn 2 | . 1 1 2 Gunslinging . | . . . . Exploded 1 | . . 1 . Melee . | . . . . Uniques/NPCs Destroyed . | . . . . Combat | -11 -10 -10 -8 -------- Run | Yrd Mat Sub Mat Hostile Shots Fired 290 | . 22 26 242 Missed 65 | . 7 7 51 Damage Taken 2510 | . 175 429 1906 Core 648 | . 34 63 551 Absorbed by Shields . | . . . . Regen/Repaired (Parts) 48 | . 48 . . Core Remaining (%) 80 | 100 . 61 . Volleys Fired 130 | . 43 21 66 Largest 2 | . 2 2 2 Hottest 60 | . 60 50 48 Shots Fired 216 | . 82 37 97 Gun 201 | . 80 24 97 Cannon . | . . . . Launcher 15 | . 2 13 . Special . | . . . . Kinetic 177 | . 56 24 97 Thermal 24 | . 24 . . Explosive 15 | . 2 13 . Electromagnetic . | . . . . Robot Hit Streak 10 | . 6 7 10 Robot Miss Streak 4 | . 4 3 3 Penetration Max . | . . . . Secondary Targets 2 | . . . 2 Max Gunslinging Chain 1 | . . . 1 Shots Hit Robots 129 | . 47 23 59 Core Hits 67 | . 28 11 28 Critical Kills . | . . . . Critical Parts Destroyed . | . . . . Critical Strikes . | . . . . Melee Attacks . | . . . . Impact . | . . . . Slashing . | . . . . Piercing . | . . . . Sneak Attacks . | . . . . Combat Hostiles . | . . . . Follow-up Attacks . | . . . . Damage Inflicted 2288 | . 562 557 1169 Guns 1939 | . 562 208 1169 Cannons . | . . . . Explosions 349 | . . 349 . Melee . | . . . . Ramming . | . . . . Kinetic 1770 | . 393 208 1169 Thermal 169 | . 169 . . Explosive 349 | . . 349 . Electromagnetic . | . . . . Impact . | . . . . Slashing . | . . . . Piercing . | . . . . Highest Corruption 1 | . 1 1 . Average Corruption 1 | . 1 1 . Corruption Purged . | . . . . Corruption Blocked . | . . . . Effects 6 | . 3 3 . Message Errors 2 | . 2 . . Matter Fused 2 | . . 2 . Data Loss (major) 1 | . 1 . . Alerts 1 | . . 1 . Overload Shots . | . . . . Overflow Damage 9 | . . 9 . Projectiles . | . . . . Explosions 9 | . . 9 . Melee . | . . . . Knockbacks . | . . . . Impact . | . . . . Kinetic . | . . . . Secondary . | . . . . Self-Inflicted Damage 28 | . . 28 . Shots 1 | . . 1 . Rammed . | . . . . Targets Rammed . | . . . . Kicked . | . . . . Crushed . | . . . . Highest Temperature 42 | . 42 . 7 Average Temperature 28 | . 29 . 7 Received Heat Transfer 498 | . 48 72 378 Siege Activations . | . . . . Robots Corrupted . | . . . . Combat Hostiles . | . . . . Parts Fried . | . . . . Impact Corruptions . | . . . . Robots Melted . | . . . . Combat Hostiles . | . . . . Parts Melted 1 | . . 1 . Heat Transferred 375 | . 375 . . Parts Sabotaged . | . . . . Parts Stolen . | . . . . Parts Stripped . | . . . . Power Chain Reactions . | . . . . Alert | -11 -10 -10 -8 ------- Run | Yrd Mat Sub Mat Peak Influence 219 | . 114 . 219 Initial . | . . . . Average 62 | . 60 . 79 Maximum Alert Level 1 | . . . 1 Low Security (%) 99 | 100 100 . 97 Level 1 . | . . . 2 Level 2 . | . . . . Level 3 . | . . . . Level 4 . | . . . . Level 5 . | . . . . High Security . | . . . . Max Security . | . . . . Squads Dispatched 4 | . 3 . 1 Investigation 1 | . 1 . . Extermination . | . . . . Reinforcement 2 | . 2 . . Assault . | . . . . Garrison 1 | . . . 1 Intercept . | . . . . Searches Triggered . | . . . . Construction Impeded . | . . . . Haulers Reinforced . | . . . . Active Scanning Responses . | . . . . Cargo Convoy Interrupts . | . . . . Stealth | -11 -10 -10 -8 --------- Run | Yrd Mat Sub Mat Distress Signals 6 | . 2 . 4 Communications Jammed . | . . . . Distress Signals . | . . . . Times Spotted 51 | . 22 4 25 Peak Tracking Total 8 | . 3 2 8 Tactical Retreats 1 | . . . 1 Traps | -11 -10 -10 -8 ------- Run | Yrd Mat Sub Mat Traps Triggered 2 | . 2 . . Indirectly . | . . . . Trap Hack Attempts . | . . . . Triggered . | . . . . Disarmed . | . . . . Reprogrammed . | . . . . Reused . | . . . . Traps Extracted . | . . . . Installed . | . . . . Triggered . | . . . . Machines | -11 -10 -10 -8 ---------- Run | Yrd Mat Sub Mat Machines Disabled 1 | . 1 . . Max in Single Turn 1 | . 1 . . Machines Repaired . | . . . . Machines Dismantled . | . . . . Machines Sabotaged . | . . . . Overloaded Fab Kills . | . . . . Hacking | -11 -10 -10 -8 --------- Run | Yrd Mat Sub Mat Machines Accessed 6 | . 5 . 1 Terminals 5 | . 4 . 1 Fabricators . | . . . . Repair Stations 1 | . 1 . . Recycling Units . | . . . . Scanalyzers . | . . . . Garrison Access . | . . . . Total Hacks 10 | . 9 . 1 Successful 7 | . 6 . 1 Failed 3 | . 3 . . Catastrophic . | . . . . Database Lockouts . | . . . . Manual . | . . . . Terminals 8 | . 7 . 1 Fabricators . | . . . . Repair Stations 2 | . 2 . . Recycling Units . | . . . . Scanalyzers . | . . . . Garrison Access . | . . . . Terminal Hacks 5 | . 4 . 1 Prototype ID Bank 1 | . 1 . . Emergency Access Points 1 | . 1 . . Alert Level 1 | . . . 1 Recall Investigation 1 | . 1 . . Zone Layout 1 | . 1 . . Fabricator Hacks . | . . . . Repair Station Hacks 2 | . 2 . . Scan Component 1 | . 1 . . Repair 1 | . 1 . . Recycling Unit Hacks . | . . . . Scanalyzer . | . . . . Garrison Access Hacks . | . . . . Unauthorized Hacks . | . . . . Terminals . | . . . . Fabricators . | . . . . Repair Stations . | . . . . Recycling Units . | . . . . Scanalyzers . | . . . . Garrison Access . | . . . . Data Cores Recovered . | . . . . Used . | . . . . Hacking Detections 3 | . 3 . . Full Trace Events . | . . . . Feedback Events . | . . . . Feedback Blocked . | . . . . Robot Schematics Acquired . | . . . . Robots Built . | . . . . Authchips . | . . . . Time . | . . . . Total Robot Build Rating . | . . . . Part Schematics Acquired . | . . . . Parts Built . | . . . . Authchips . | . . . . Time . | . . . . Total Part Build Rating . | . . . . Parts Repaired 1 | . 1 . . Time 26 | . 26 . . Parts Recycled . | . . . . Recycled Matter . | . . . . Retrieved Matter . | . . . . Retrieved Components . | . . . . Parts Scanalyzed . | . . . . Part Schematics Acquired . | . . . . Parts Damaged . | . . . . Bothacking | -11 -10 -10 -8 ------------ Run | Yrd Mat Sub Mat Used RIF Installer . | . . . . Robots Hacked . | . . . . Non-combat . | . . . . Combat . | . . . . Robot Hacks Applied . | . . . . Relay Couplers Released . | . . . . Fabnet Peak Effective % . | . . . . Robots Rewired . | . . . . Allies Hacked . | . . . . Hacks Repelled . | . . . . Allies | -11 -10 -10 -8 -------- Run | Yrd Mat Sub Mat Total Allies . | . . . . Largest Group . | . . . . Highest-Rated Group . | . . . . Highest-Rated Ally . | . . . . Total Orders . | . . . . Ally Attacks . | . . . . Total Damage . | . . . . Kills . | . . . . Allies Corrupted . | . . . . Allies Melted . | . . . . Intel | -11 -10 -10 -8 ------- Run | Yrd Mat Sub Mat Robot Analysis Total . | . . . . Derelict Logs Recovered . | . . . . Drone Launches . | . . . . Drone Recoveries . | . . . . Exploration | -11 -10 -10 -8 ------------- Run | Yrd Mat Sub Mat Turns Passed 2867 | 59 1689 633 486 Spaces Moved 1460 | 38 919 345 158 Core 20 | 19 . . 1 Treads 1440 | 19 919 345 157 Legs . | . . . . Wheels . | . . . . Hover . | . . . . Flight . | . . . . Fastest Speed 50 | 50 160 160 160 Average Speed 158 | 105 160 160 160 Slowest Speed 250 | 160 160 160 250 Overloaded Moves . | . . . . Propulsion Burnouts . | . . . . Robots Hopped . | . . . . Cave-ins Triggered . | . . . . Exploration Rate (%) 32 | 4 91 23 13 Regions Visited 3 Branch Regions 1 Pre-discovered Areas 1 | . . 1 . Known Exits Taken . | . . . . Unknown Exits Taken 3 | 1 1 1 . Scrap Searched . | . . . . Spaces Dug 5 | . 5 . . Terrain Destroyed 78 | . 18 60 . Melee . | . . . . Projectile . | . . . . AOE 78 | . 18 60 . Terrain Rammed . | . . . . Walls Destroyed . | . . . . Machines Disabled . | . . . . Actions | -11 -10 -10 -8 --------- Run | Yrd Mat Sub Mat Total 1826 | 57 1060 386 323 Wait 151 | 9 65 14 63 Move 1457 | 37 918 344 158 Hop . | . . . . Pick Up 34 | 5 17 1 11 Fast Attach 5 | 1 1 . 3 Attach 12 | 5 1 . 6 Detach 2 | . . . 2 Swap 17 | . 7 6 4 Drop 18 | . 8 . 10 Fire 130 | . 43 21 66 Melee . | . . . . Ram . | . . . . Kick . | . . . . Crush . | . . . . Escape Stasis . | . . . . Rewire . | . . . . Trap . | . . . . Miscellaneous . | . . . . Route ------- -11/Scrapyard -10/Materials (discovered 5 exits: [*Mat x3] / [*Min] / [*Sub]) -10/Subcaves -8/Materials History --------- Turn | Location | Event 6 | -11/Scrapyard | Discovered new exit (range 14) 60 | -11/Scrapyard | Entered Materials 195 | -10/Materials | Discovered new exit (range 15) 313 | -10/Materials | Build established: Mutant 402 | -10/Materials | Discovered new exit (range 9) 471 | -10/Materials | Discovered new exit (range 15) 833 | -10/Materials | Repaired Assault Rifle 1153 | -10/Materials | Discovered new exit (range 11) 1368 | -10/Materials | Discovered new exit (range 15) 1749 | -10/Materials | Entered Subcaves 1767 | -10/Subcaves | Learned location of Zion (-7) 1767 | -10/Subcaves | Met a Zionite searching for "candidates" 2045 | -10/Subcaves | Ambushed by angry Subdweller bent on revenge 2081 | -10/Subcaves | Ambushed by Subdweller buried in earth 2367 | -10/Subcaves | Discovered new exit (range 10) 2382 | -10/Subcaves | Entered Materials 2382 | -8/Materials | Evolved 4 slots: Propulsion x2, Utility x2 2774 | -8/Materials | Garrison activated, responded to threat 2834 | -8/Materials | Core integrity fell below 50% 2842 | -8/Materials | Destroyed 9 combat bots 2857 | -8/Materials | Core integrity fell below 20% 2863 | -8/Materials | Lost 9 parts (1p4n2u2w) 2868 | -8/Materials | Destroyed by S-10 Pest with Light Assault Rifle Last Messages --------------- M-13 Machinist repairs Com. Wheel. S-10 Pest destroyed. W-25 Informer sends out distress signal. K-01 Serf collects debris. S-10 Pest destroyed. K-01 Serf collects debris. Imp. Heat Sink destroyed. Destroyed Lgt. Ion Engine. K-01 Serf collects debris. Med. Treads destroyed. K-01 Serf collects debris. Med. Treads destroyed. S-10 Pest destroyed. K-01 Serf collects debris. Enh. Autogun destroyed. K-01 Serf collects debris. Imp. Heat Sink destroyed. K-01 Serf collects debris. M-13 Machinist repairs Flight Unit. K-01 Serf collects debris. Map ----- +----------------------------------------------------+ | ?????????????????????????????????????????????????? | | ?????????????????????????????????????????????????? | | ?????????????????????????????????????????????????? | | ?????????????????????????????????????????????????? | | ?????????????????????????????????????????????????? | | ?????????????????????????????????????????????????? | | ?????????????????????????????????????????????????? | | ?????????????????????????????????????????????????? | | ?????????????????????????????????????????????????? | | ?????????????????????????????????????????????????? | | ???????????????????????? ????????????????????????? | | ???????????????????????? ????????????????????????? | | ???????????????????????? ??""????????????????????? | | ???????????????????????# ??""????????????????????? | | ???????????????????????#*?? ????????????????????? | | ??????????????????????##%##+#????????????????????? | | ??????????????????????? m! ?????????????????????? | | ??????????????????????? ?????????????????????? | | ??????????????????????? *=k ?????????????????????? | | ???????????????????????#[=*#?????????????????????? | | ???????????????????????#=%%#?????????????????????? | | ???????????????????????#%%%#?????????????????????? | | ???????????????????????#s=s#?????????????????????? | | ???????????????????????#=[*#?????????????????????? | | ???????????????????????# s%#?????????????????????? | | ???????????????????????#k@ #?????????????????????? | | ???????????????????????#* %#?????????????????????? | | ??????????????????????## = ##?????????###########? | | ??????????????????????# k =########### T [ #? | | ??????????????????????# k * # #? | | ??????????????????????# # #? | | ??????????????????????# # """"" #? | | ??????????????????????# ####### + """"" #? | | ??????????????????????#######?????# !# """"" #? | | ??????????????????????????????????# **# ?? | | ?????????????######################= # #? | | ?????????????# *[ [* ###########? | | ?????????????# *== #??????????? | | ?????????????# = = ! #??????????? | | ?????????????# ########### ########??????????? | | ?????????????# #?????????# #?????????????????? | | ?????????????# #?????????# #?????????????????? | | ?????????????# ########??# ########??????+#### | | ?????????????# # #### ###### | | ?????????????# # + %= ^ | | ?????????????# # """ #### !| | | ?????????????# + """ #??######## ^ | | ?????????????# # """ #?????#] ^ | | ?????????????# # #?????# = | | ?????????????# ########?????#==[= ^ | +----------------------------------------------------+ Best States ------------- Heat Dissipation 59 Energy Generation 14 Energy Capacity 265 Matter Stores 300 Matter Capacity 300 Sight Range 16 Terrain Scan Density 10 Armor Coverage 150 Evasion (%) 50 Recoil Reduction 4 Item Schematics ----------------- None Robot Schematics ------------------ None Fabricated ------------ Nothing Alien Tech Used ----------------- None Achievements -------------- None Challenges ------------ None Game ------ Seed MasterMasterMallet Manual? 0 Play Time 00:15:36 Cumulative 17.8 hours Start 2024.04.20 @ 15:15:28 End 2024.04.20 @ 15:29:19 Sessions 1 Manual Loads 0 Difficulty Rogue Special Mode None Game No. 43 Rogue 42 Adventurer 1 Explorer 0 Win Type - Total 0 Types 0/0/0/0/0/0/0/0/0 Lore% 8 Gallery% 21 Achievement% 19 Wizard Run 0 Options --------- Layout 1 ASCII 0 Keyboard 0 Movement Mouse Keybinds 0 Fullscreen 2 Font 24/Terminus Map View 50x35 Zoom Use 0% Tactical HUD 0 Map Filters NONE Filters NONE Steam 1 RUN: b588f581-acd3-4167-b0c1-4897bde30c8e